bitfinex/quotes_BTCUSD_20220201
["timestamp","ask_amount","ask_price","bid_price","bid_amount"]
[1643674453726,0.00130245,38570.0,38569.0,0.880294]
[1643674453930,0.59785484,38578.0,38569.0,0.530294]
[1643674454126,0.68060391,38578.0,38572.0,0.06483226]
[1643674455528,0.34026415,38578.0,38572.0,0.06483226]
[1643674455730,0.21442757,38580.0,38573.0,0.29036036]
[1643674455731,0.17471535,38580.0,38573.0,0.29036036]
[1643674455930,0.1198,38586.0,38575.0,0.1296454]
[1643674455931,0.17671535,38582.0,38575.0,0.1296454]
[1643674456131,0.002,38582.0,38575.0,0.1296454]
[1643674456434,0.002,38582.0,38575.0,0.1796454]
[1643674457081,0.002,38582.0,38577.0,0.19444488]
[1643674457281,0.002,38582.0,38579.0,0.064815]
[1643674458083,0.002,38582.0,38579.0,0.129632]
[1643674458084,0.00335645,38582.0,38579.0,0.129632]
[1643674458987,0.002,38582.0,38579.0,0.129632]
[1643674459184,0.00342867,38582.0,38579.0,0.129632]
[1643674459384,0.00342867,38582.0,38579.0,0.064817]
[1643674460184,0.26141093,38580.0,38579.0,0.064817]
[1643674465181,0.26141093,38580.0,38579.0,0.06475622]
[1643674466182,0.002,38582.0,38579.0,0.06475622]
[1643674466382,0.00136109,38581.0,38579.0,0.06475622]
[1643674466585,0.00136109,38581.0,38579.0,0.12957322]
[1643674466886,0.00136109,38581.0,38579.0,0.06475622]
[1643674467182,0.23803167,38581.0,38579.0,0.06475622]
[1643674467383,0.23667058,38581.0,38579.0,0.06475622]
[1643674467783,0.23667058,38581.0,38577.0,0.19444488]
[1643674468854,0.23803167,38581.0,38577.0,0.19444488]
[1643674469461,0.23803167,38581.0,38575.0,0.129637]
[1643674469462,0.33328201,38580.0,38575.0,0.129637]
[1643674469657,0.33328201,38580.0,38571.0,0.1227]
[1643674469957,0.33328201,38580.0,38564.0,0.44002818]
[1643674469958,0.4157084,38571.0,38564.0,0.44002818]
[1643674470157,0.4157084,38571.0,38564.0,0.49578518]
[1643674470354,0.27970199,38569.0,38564.0,0.37518518]
[1643674470555,0.09841403,38565.0,38564.0,0.37518518]
[1643674470755,0.09841403,38565.0,38564.0,0.00128518]
[1643674470955,0.09841403,38565.0,38564.0,0.13096361]
[1643674471156,0.09841403,38565.0,38564.0,0.12967843]
[1643674471356,0.09841403,38565.0,38562.0,0.129679]
[1643674471759,0.09841403,38565.0,38564.0,0.00128518]
[1643674472387,0.09841403,38565.0,38554.0,0.134831]
[1643674472388,0.30934223,38557.0,38556.0,0.129692]
[1643674472582,0.5019,38564.0,38563.0,0.00128522]
[1643674472780,1.11462256,38564.0,38563.0,0.00128522]
[1643674473484,1.11462256,38564.0,38558.0,0.01919746]
[1643674473680,1.11462256,38564.0,38551.0,0.139709]
[1643674473681,0.76399856,38564.0,38562.0,0.00121436]
[1643674473982,0.76399856,38564.0,38562.0,0.00110877]
[1643674473983,1.00299066,38563.0,38562.0,0.00110877]
[1643674474185,0.852524,38563.0,38562.0,0.00110877]
[1643674474380,1.35603112,38563.0,38562.0,0.00110877]
[1643674474980,1.35603112,38563.0,38554.0,0.00485838]
[1643674474981,0.33535986,38555.0,38554.0,0.00485838]
[1643674475182,0.23554117,38555.0,38554.0,0.00485838]
[1643674475382,0.23554117,38555.0,38551.0,0.01]
[1643674476634,0.09475781,38553.0,38551.0,0.01]
[1643674477035,0.09475781,38553.0,38551.0,0.20458123]
[1643674477239,0.09475781,38553.0,38552.0,0.350624]
[1643674477534,0.23554117,38555.0,38552.0,0.350624]
[1643674478536,0.23554117,38555.0,38551.0,0.20458123]
[1643674478736,0.23554117,38555.0,38552.0,0.0015027]
[1643674479586,0.3756376,38558.0,38552.0,0.0015027]
[1643674479789,0.08479195,38558.0,38551.0,0.20458123]
[1643674480085,0.08479195,38558.0,38552.0,0.0015027]
[1643674480888,0.29538652,38558.0,38551.0,0.20458123]
[1643674481187,0.28912221,38553.0,38551.0,0.01]
[1643674483141,0.42024816,38552.0,38551.0,0.01]
[1643674483339,0.67087216,38552.0,38551.0,0.01]
[1643674483537,0.57087216,38552.0,38551.0,0.01]
[1643674484342,1.08792607,38552.0,38551.0,0.01]
[1643674484740,0.5,38551.0,38535.0,1.472]
[1643674484942,0.32974267,38550.0,38544.0,0.00601186]
[1643674485143,0.350624,38549.0,38544.0,0.00601186]
[1643674485340,0.247633,38548.0,38544.0,0.00601186]
[1643674485541,0.31744088,38546.0,38544.0,0.00601186]
[1643674485740,0.21125079,38545.0,38539.0,0.05]
[1643674485941,0.21125079,38545.0,38544.0,0.00144757]
[1643674486140,0.31744088,38546.0,38544.0,0.00144757]
[1643674486342,0.21099334,38545.0,38544.0,0.00144757]
[1643674486981,0.09676407,38542.0,38539.0,0.05]
[1643674487380,0.09676407,38542.0,38537.0,0.13555448]
[1643674487580,0.09676407,38542.0,38539.0,0.01929971]
[1643674487783,0.09676407,38542.0,38537.0,0.13555448]
[1643674488181,0.09676407,38542.0,38537.0,0.1297632]
[1643674488380,0.09676407,38542.0,38538.0,0.00144771]
[1643674488381,0.23414717,38541.0,38538.0,0.00144771]
[1643674489183,0.21095588,38546.0,38538.0,0.00144771]
[1643674489385,0.21596322,38551.0,38539.0,0.06488573]
[1643674489583,0.21596322,38551.0,38541.0,0.05]
[1643674490186,0.24444247,38545.0,38541.0,0.05]
[1643674490388,0.22853969,38544.0,38538.0,0.06612296]
[1643674490630,0.24444247,38545.0,38538.0,0.06612296]
[1643674490831,0.09042286,38547.0,38538.0,0.064883]
[1643674491233,0.3017448,38547.0,38540.0,0.06488211]
[1643674491431,0.09042286,38547.0,38540.0,0.06488211]
[1643674491833,0.36530653,38547.0,38544.0,0.00123986]
[1643674492433,0.57613081,38547.0,38544.0,0.00123986]
[1643674492636,0.36530653,38547.0,38544.0,0.00123986]
[1643674492835,0.57867143,38547.0,38544.0,0.00123986]
[1643674493632,0.58048247,38547.0,38542.0,0.0012399]
[1643674494035,0.63048247,38547.0,38542.0,0.0012399]
[1643674494235,0.1,38546.0,38542.0,0.0012399]
[1643674494487,0.6227771,38545.0,38542.0,0.0012399]
[1643674494689,0.6227771,38545.0,38544.0,0.00123761]
[1643674494987,0.6727771,38545.0,38544.0,0.00123761]
[1643674495283,0.7727771,38545.0,38544.0,0.00123761]
[1643674496885,0.500624,38545.0,38544.0,0.00123761]
[1643674498939,0.73631488,38545.0,38543.0,0.00123763]
[1643674499148,0.77334806,38544.0,38543.0,0.00123763]
[1643674499339,1.12397206,38544.0,38543.0,0.0022145]
[1643674500240,0.67397206,38544.0,38543.0,0.0022145]
[1643674501241,0.67397206,38544.0,38542.0,0.00097688]
[1643674501444,0.83829155,38543.0,38542.0,0.00097688]
[1643674501746,1.04019155,38543.0,38542.0,0.00097688]
[1643674502005,1.09019155,38543.0,38542.0,0.00200564]
[1643674502405,1.09019155,38543.0,38542.0,0.00102876]
[1643674502803,1.04019155,38543.0,38542.0,0.00102876]
[1643674503004,1.10509555,38543.0,38542.0,0.00102876]
[1643674503413,0.7,38542.0,38536.0,0.00411566]
[1643674503707,0.30616009,38540.0,38536.0,0.00411566]
[1643674503904,0.71067027,38539.0,38536.0,0.00411566]
[1643674504106,0.81067027,38539.0,38536.0,0.00411566]
[1643674504503,0.3480356,38538.0,38536.0,0.00411566]
[1643674504803,0.92838372,38537.0,38536.0,0.00411566]
[1643674505005,0.67838372,38537.0,38536.0,0.00411566]
[1643674505205,0.67838372,38537.0,38535.0,0.00411572]
[1643674505206,0.72838372,38537.0,38535.0,0.00411572]
[1643674505505,0.49013299,38536.0,38535.0,0.00411572]
[1643674505734,0.94075699,38536.0,38535.0,0.00411572]
[1643674506137,0.72523529,38536.0,38535.0,0.00411572]
[1643674506441,0.350624,38536.0,38535.0,0.00411572]
[1643674506637,0.07443299,38539.0,38535.0,0.00411572]
[1643674506838,0.07443299,38539.0,38530.0,0.02773489]
[1643674507046,0.23221229,38547.0,38534.0,0.0010705]
[1643674507243,0.4803,38548.0,38535.0,0.0519]
[1643674507441,0.1222,38557.0,38537.0,0.12976002]
[1643674507442,0.1219,38556.0,38537.0,0.12976002]
[1643674507641,0.69394373,38554.0,38538.0,0.0519]
[1643674507841,0.00102651,38551.0,38538.0,0.23763571]
[1643674508041,0.00102651,38551.0,38540.0,0.27156085]
[1643674508241,0.00102651,38551.0,38542.0,0.064872]
[1643674508444,0.00102651,38551.0,38545.0,0.05]
[1643674508641,0.00102651,38551.0,38546.0,0.217838]
[1643674508841,0.00102651,38551.0,38546.0,0.152976]
[1643674509041,0.00102651,38551.0,38546.0,0.0519]
[1643674509239,0.02980518,38548.0,38546.0,0.0519]
[1643674509686,0.02980518,38548.0,38546.0,0.07293738]
[1643674510088,0.02980518,38548.0,38546.0,0.02103738]
[1643674510488,0.11938273,38548.0,38541.0,0.06487427]
[1643674510687,0.02980518,38548.0,38542.0,0.350624]
[1643674511687,0.02980518,38548.0,38542.0,0.37054451]
[1643674511887,0.02980518,38548.0,38542.0,0.350624]
[1643674512689,0.02980518,38548.0,38543.0,0.064869]
[1643674512889,0.02980518,38548.0,38544.0,0.101093]
[1643674514142,0.02980518,38548.0,38544.0,0.151093]
[1643674514343,0.30676271,38549.0,38544.0,0.151093]
[1643674514744,0.02980518,38546.0,38544.0,0.151093]
[1643674515443,0.02980518,38546.0,38544.0,0.21596024]
[1643674516043,0.02980518,38546.0,38544.0,0.16596024]
[1643674516644,0.02980518,38546.0,38544.0,0.101093]
[1643674517084,0.02980518,38546.0,38541.0,0.129733]
[1643674517283,0.02980518,38546.0,38541.0,0.179733]
[1643674517483,0.02980518,38546.0,38542.0,0.350624]
[1643674519685,0.28290465,38549.0,38542.0,0.350624]
[1643674519885,0.02980518,38546.0,38542.0,0.350624]
[1643674520286,0.02980518,38546.0,38542.0,0.400624]
[1643674520743,0.02980518,38546.0,38542.0,0.350624]
[1643674521942,0.08094087,38544.0,38542.0,0.350624]
[1643674522549,0.08094087,38544.0,38539.0,0.00118301]
[1643674523145,0.61173441,38541.0,38539.0,0.00118301]
[1643674523544,0.61173441,38541.0,38539.0,0.00236601]
[1643674524246,0.61173441,38541.0,38539.0,0.001183]
[1643674525287,0.02980518,38540.0,38538.0,0.00122532]
[1643674526291,0.18170518,38540.0,38537.0,0.00122533]
[1643674526496,0.23170518,38540.0,38537.0,0.00122533]
[1643674526690,0.23170518,38540.0,38537.0,0.00115021]
[1643674526691,0.350624,38539.0,38537.0,0.00115021]
[1643674526889,0.6519,38538.0,38537.0,0.00115021]
[1643674527088,1.002524,38538.0,38537.0,0.00115021]
[1643674527289,1.102524,38538.0,38537.0,0.00115021]
[1643674527690,0.602524,38538.0,38537.0,0.00239949]
[1643674528330,0.602524,38538.0,38537.0,0.00124928]
[1643674529135,0.552524,38538.0,38537.0,0.00124928]
[1643674529331,0.552524,38538.0,38530.0,0.02773489]
[1643674529631,0.27601615,38534.0,38530.0,0.02773489]
[1643674529834,0.05,38534.0,38530.0,0.02773489]
[1643674530034,0.05,38534.0,38531.0,0.350624]
[1643674530232,0.1019,38538.0,38532.0,0.02076048]
[1643674530431,0.15,38540.0,38530.0,0.02773489]
[1643674530632,0.02980518,38534.0,38530.0,0.02773489]
[1643674530833,0.02980518,38534.0,38531.0,0.350624]
[1643674532085,0.02980518,38534.0,38530.0,0.02773489]
[1643674532384,0.08385787,38532.0,38531.0,0.00150046]
[1643674533685,0.02980518,38534.0,38531.0,0.00150046]
[1643674534286,0.02980518,38534.0,38530.0,0.02073583]
[1643674535289,0.02980518,38534.0,38531.0,0.400624]
[1643674535738,0.22553036,38544.0,38532.0,0.350614]
[1643674536046,0.10067592,38538.0,38532.0,0.350614]
[1643674536236,0.28526662,38539.0,38530.0,0.01923535]
[1643674536437,0.28526662,38539.0,38531.0,0.350624]
[1643674536638,0.28526662,38539.0,38532.0,0.064885]
[1643674536940,0.28526662,38539.0,38533.0,0.091239]
[1643674537142,0.28526662,38539.0,38533.0,0.05]
[1643674537338,0.28526662,38539.0,38531.0,0.42]
[1643674537339,0.8,38536.0,38531.0,0.42]
[1643674537542,0.8,38536.0,38517.0,0.00011321]
[1643674537543,0.350758,38532.0,38517.0,0.00011321]
[1643674537739,0.350758,38532.0,38512.0,0.3646]
[1643674537740,0.01919675,38528.0,38520.0,0.14230354]
[1643674537941,0.01919675,38528.0,38512.0,0.3646]
[1643674537942,0.0519,38527.0,38512.0,0.3646]
[1643674538137,0.22553036,38526.0,38512.0,0.3646]
[1643674538337,0.22553036,38526.0,38512.0,0.64583871]
[1643674538338,0.09520291,38520.0,38512.0,0.64583871]
[1643674538537,0.29883899,38522.0,38513.0,0.350758]
[1643674538740,0.0519,38525.0,38515.0,0.04757813]
[1643674538939,0.0519,38525.0,38516.0,0.091319]
[1643674539430,0.0519,38525.0,38516.0,0.141319]
[1643674539823,0.0519,38525.0,38520.0,0.29895241]
[1643674540219,0.0519,38525.0,38523.0,0.00078022]
[1643674540418,0.29696764,38527.0,38523.0,0.00078022]
[1643674540820,0.02980518,38525.0,38523.0,0.00078022]
[1643674544339,0.02980518,38525.0,38524.0,0.26126558]
[1643674545540,0.02980518,38525.0,38523.0,0.00078022]
[1643674545739,0.02980518,38525.0,38521.0,0.00078014]
[1643674545938,0.42226765,38528.0,38521.0,0.00078014]
[1643674546141,0.02980518,38524.0,38521.0,0.00078014]
[1643674546741,0.02980518,38524.0,38521.0,0.2591886]
[1643674547386,0.02980518,38524.0,38522.0,0.00077778]
[1643674548589,0.02980518,38524.0,38523.0,0.850758]
[1643674548788,0.02980518,38524.0,38523.0,0.952658]
[1643674549488,0.02980518,38524.0,38523.0,1.01756]
[1643674549889,0.02980518,38524.0,38523.0,1.14168084]
[1643674550751,0.02980518,38524.0,38523.0,0.54168084]
[1643674551448,0.02980518,38524.0,38523.0,0.77316927]
[1643674551843,0.02980518,38524.0,38523.0,1.32316927]
[1643674552442,0.02980518,38524.0,38523.0,0.87316927]
[1643674555693,0.02972268,38524.0,38523.0,1.27316927]
[1643674556093,0.01490259,38524.0,38523.0,1.27316927]
[1643674556295,0.02972268,38524.0,38523.0,1.27316927]
[1643674556895,0.02972268,38524.0,38523.0,0.87316927]
[1643674557798,0.02972268,38524.0,38523.0,1.12316927]
[1643674558241,0.09534703,38538.0,38528.0,0.064891]
[1643674558242,0.00143965,38538.0,38528.0,0.064891]
[1643674558441,0.00143965,38538.0,38529.0,0.32979441]
[1643674558640,0.00143965,38538.0,38530.0,0.58266614]
[1643674559038,0.00143965,38538.0,38536.0,0.25878727]
[1643674559838,0.00143965,38538.0,38531.0,0.58904123]
[1643674559839,0.00144001,38538.0,38531.0,0.58904123]
[1643674560039,0.00144001,38538.0,38533.0,0.02171999]
[1643674560239,0.00144001,38538.0,38530.0,0.129769]
[1643674560442,0.29688896,38536.0,38530.0,0.129769]
[1643674560841,0.29688896,38536.0,38529.0,0.054892]
[1643674560842,0.36443817,38535.0,38529.0,0.054892]
[1643674561040,0.36443817,38535.0,38529.0,0.002992]
[1643674561242,0.36443817,38535.0,38529.0,0.00149604]
[1643674561898,0.42933833,38535.0,38529.0,0.00149604]
[1643674562491,0.42933833,38535.0,38529.0,0.00238939]
[1643674563292,0.42933833,38535.0,38529.0,0.00089335]
[1643674563892,0.42933833,38535.0,38529.0,0.0017867]
[1643674564392,0.42933833,38535.0,38529.0,0.00089335]
[1643674566441,0.42933833,38535.0,38529.0,0.00125068]
[1643674567641,0.42933833,38535.0,38529.0,0.0012818]
[1643674569494,0.52933833,38535.0,38529.0,0.0012818]
[1643674570093,0.37902581,38531.0,38529.0,0.0025199]
[1643674570296,0.47902581,38531.0,38529.0,0.0025199]
[1643674570493,0.47902581,38531.0,38529.0,0.0012381]
[1643674570693,0.06490686,38531.0,38529.0,0.0012381]
[1643674570898,0.36443817,38535.0,38529.0,0.0012381]
[1643674571094,0.38075899,38535.0,38529.0,0.0012381]
[1643674571692,0.38075899,38535.0,38528.0,0.0012381]
[1643674571893,0.39969169,38534.0,38528.0,0.0012381]
[1643674572095,0.06490155,38533.0,38528.0,0.0012381]
[1643674572495,0.06490155,38533.0,38529.0,0.00123148]
[1643674573742,0.06490155,38533.0,38529.0,0.00246788]
[1643674573943,0.06490155,38533.0,38529.0,0.0012364]
[1643674576250,0.06490155,38533.0,38529.0,0.00247422]
[1643674576445,0.06490155,38533.0,38529.0,0.00123782]
[1643674577294,0.06490155,38533.0,38529.0,0.00247583]
[1643674577692,0.06490155,38533.0,38529.0,0.00123801]
[1643674579595,0.11490155,38533.0,38529.0,0.00123801]
[1643674579795,0.11490155,38533.0,38529.0,0.00247602]
[1643674579993,0.06490678,38531.0,38529.0,0.00123801]
[1643674581444,0.06490678,38531.0,38528.0,0.00123753]
[1643674581844,0.22375632,38529.0,38528.0,0.00123753]
[1643674582044,0.27375632,38529.0,38528.0,0.00123753]
[1643674582245,0.27375632,38529.0,38528.0,0.00247507]
[1643674582444,0.27375632,38529.0,38528.0,0.00123754]
[1643674582845,0.22366807,38529.0,38528.0,0.00123754]
[1643674583644,0.22366807,38529.0,38527.0,0.00123756]
[1643674583645,0.27366807,38529.0,38527.0,0.00123756]
[1643674583849,0.44210839,38528.0,38527.0,0.00123756]
[1643674584049,0.89286639,38528.0,38527.0,0.00123756]
[1643674584247,0.94286639,38528.0,38527.0,0.00123756]
[1643674584692,0.99476639,38528.0,38527.0,0.00123756]
[1643674585191,0.32421749,38521.0,38519.0,0.00242642]
[1643674585591,0.37421749,38521.0,38519.0,0.00242642]
[1643674585993,0.37421749,38521.0,38519.0,0.00495162]
[1643674586792,0.32421749,38521.0,38519.0,0.00495162]
[1643674587392,0.38913922,38521.0,38519.0,0.00495162]
[1643674587792,0.43913922,38521.0,38512.0,0.064922]
[1643674587992,0.43913922,38521.0,38514.0,0.02175669]
[1643674588242,0.43913922,38521.0,38517.0,0.00123468]
[1643674588846,0.05,38520.0,38517.0,0.00123468]
[1643674589446,0.05,38520.0,38517.0,0.00246935]
[1643674589846,0.05,38520.0,38517.0,0.00123467]
[1643674590646,0.05,38520.0,38517.0,0.00246935]
[1643674590845,0.05,38520.0,38517.0,0.00123468]
[1643674591905,0.05,38520.0,38517.0,0.00246814]
[1643674591906,0.20607785,38519.0,38517.0,0.00246814]
[1643674592095,0.38594041,38519.0,38517.0,0.00123346]
[1643674592296,0.30871582,38518.0,38517.0,0.00123346]
[1643674592496,0.05,38518.0,38517.0,0.00123346]
[1643674592695,0.400758,38518.0,38517.0,0.00123346]
[1643674592897,0.56387433,38518.0,38517.0,0.00123346]
[1643674593095,0.61387433,38518.0,38517.0,0.00123346]
[1643674593998,0.61387433,38518.0,38516.0,0.00123347]
[1643674594200,0.21566877,38517.0,38516.0,0.00123347]
[1643674594396,0.61642677,38517.0,38516.0,0.00123347]
[1643674594596,0.61642677,38517.0,38516.0,0.00186278]
[1643674594897,0.61642677,38517.0,38516.0,0.00062931]
[1643674595942,0.06492916,38516.0,38515.0,0.00069744]
[1643674596140,0.27289021,38516.0,38515.0,0.00069744]
[1643674596340,0.11492916,38516.0,38515.0,0.00069744]
[1643674597141,0.11492916,38516.0,38514.0,0.00139309]
[1643674597342,0.25889336,38515.0,38514.0,0.00139309]
[1643674597642,0.41299485,38515.0,38514.0,0.00139309]
[1643674597843,0.46299485,38515.0,38514.0,0.00139309]
[1643674598044,0.81375285,38515.0,38514.0,0.00139309]
[1643674598244,0.46299485,38515.0,38514.0,0.00139309]
[1643674598445,0.46299485,38515.0,38513.0,0.00139312]
[1643674599690,0.46299485,38515.0,38512.0,0.00139314]
[1643674600692,0.46299485,38515.0,38512.0,0.00122131]
[1643674601292,0.35889336,38515.0,38512.0,0.00122131]
[1643674601497,0.12985831,38520.0,38512.0,0.00122131]
[1643674601498,0.06492578,38519.0,38512.0,0.00122131]
[1643674601896,0.06492578,38519.0,38512.0,0.00241143]
[1643674602494,0.09879179,38516.0,38512.0,0.00119012]
[1643674602695,0.05,38516.0,38510.0,0.06111512]
[1643674602999,0.123,38521.0,38510.0,0.31522221]
[1643674603248,0.21728048,38522.0,38514.0,0.00119009]
[1643674603446,0.00115862,38522.0,38514.0,0.00119009]
[1643674603646,0.00115862,38522.0,38516.0,0.064916]
[1643674603846,0.28683238,38521.0,38516.0,0.064916]
[1643674604646,0.33683238,38521.0,38516.0,0.064916]
[1643674605847,0.28683238,38521.0,38516.0,0.064916]
[1643674606046,0.33683238,38521.0,38516.0,0.064916]
[1643674606447,0.4017491,38521.0,38515.0,0.3104793]
[1643674606648,0.4017491,38521.0,38515.0,0.0519]
[1643674606903,0.00049301,38520.0,38512.0,0.02066084]
[1643674607893,0.5,38513.0,38505.0,0.129834]
[1643674608098,0.5,38513.0,38498.0,1.574772]
[1643674608099,0.2227002,38512.0,38498.0,0.194772]
[1643674608295,0.2227002,38512.0,38496.0,0.00011321]
[1643674608296,0.3727002,38512.0,38500.0,0.00253849]
[1643674608496,0.402658,38511.0,38500.0,0.00253849]
[1643674608694,0.2227002,38510.0,38500.0,0.00253849]
[1643674608899,0.26692277,38503.0,38500.0,0.00253849]
[1643674609096,0.33187501,38503.0,38500.0,0.00253849]
[1643674609293,0.43187501,38503.0,38500.0,0.00253849]
[1643674609895,0.350758,38502.0,38500.0,0.00253849]
[1643674610295,0.43187501,38503.0,38500.0,0.00253849]
[1643674610495,0.350758,38502.0,38500.0,0.00253849]
[1643674610747,0.0649444,38506.0,38500.0,0.00253849]
[1643674610947,1.0136,38519.0,38500.0,0.00253849]
[1643674610948,0.25267391,38513.0,38500.0,0.00253849]
[1643674611149,0.25267391,38513.0,38501.0,0.11252484]
[1643674611347,0.12987391,38513.0,38501.0,0.32619695]
[1643674611551,0.08749803,38511.0,38501.0,0.26125995]
[1643674611747,0.25910583,38509.0,38501.0,0.26125995]
[1643674611948,0.30910583,38509.0,38501.0,0.26125995]
[1643674613048,0.30910583,38509.0,38501.0,0.68125995]
[1643674613451,0.37404415,38509.0,38501.0,0.68125995]
[1643674615094,0.37404415,38509.0,38501.0,0.74619695]
[1643674616895,0.37404415,38509.0,38503.0,0.00149351]
[1643674618242,0.37404415,38509.0,38504.0,0.00149349]
[1643674618644,0.20683631,38508.0,38504.0,0.00149349]
[1643674618844,0.20785251,38508.0,38504.0,0.00149349]
[1643674619044,0.2070466,38508.0,38504.0,0.00149349]
[1643674619242,0.61157151,38509.0,38504.0,0.00149349]
[1643674619443,0.350758,38508.0,38504.0,0.00149349]
[1643674619644,0.400758,38508.0,38504.0,0.00298698]
[1643674619844,0.10395082,38505.0,38504.0,0.00149349]
[1643674620445,0.05,38505.0,38504.0,0.00149349]
[1643674620845,0.06494545,38506.0,38504.0,0.00149349]
[1643674621044,0.06494545,38506.0,38503.0,0.00149352]
[1643674622195,0.06494545,38506.0,38503.0,0.00266905]
[1643674622397,0.0913461,38505.0,38503.0,0.00117553]
[1643674622599,0.06494545,38506.0,38503.0,0.00117553]
[1643674622798,0.05,38505.0,38503.0,0.00117553]
[1643674623197,0.06494545,38506.0,38503.0,0.00117553]
[1643674623198,0.11494545,38506.0,38503.0,0.00117553]
[1643674623398,0.05,38505.0,38503.0,0.00235106]
[1643674623697,0.05,38505.0,38503.0,0.00117553]
[1643674623897,0.07511212,38504.0,38503.0,0.00117553]
[1643674624298,0.47587012,38504.0,38503.0,0.00117553]
[1643674624498,0.400758,38504.0,38503.0,0.00117553]
[1643674624898,0.350758,38504.0,38503.0,0.00117553]
[1643674625103,0.06494545,38506.0,38502.0,0.00117555]
[1643674625655,0.08224836,38507.0,38502.0,0.00117555]
[1643674625854,0.08224836,38507.0,38502.0,0.00238688]
[1643674626253,0.18224836,38507.0,38502.0,0.00238688]
[1643674626453,0.18224836,38507.0,38502.0,0.00121133]
[1643674627253,0.18224836,38507.0,38503.0,0.00124261]
[1643674627658,0.350758,38506.0,38503.0,0.00124261]
[1643674627853,0.1,38505.0,38503.0,0.00124261]
[1643674628055,0.350758,38504.0,38503.0,0.00124261]
[1643674628256,0.05,38504.0,38503.0,0.00124261]
[1643674628955,0.16494693,38506.0,38503.0,0.00124261]
[1643674629155,0.11494693,38506.0,38503.0,0.00124261]
[1643674629400,0.05,38505.0,38503.0,0.00124261]
[1643674629595,0.05,38505.0,38503.0,0.00247767]
[1643674629796,0.05,38505.0,38503.0,0.00123506]
[1643674629998,0.06494693,38506.0,38503.0,0.00123506]
[1643674630204,0.05,38507.0,38503.0,0.00123506]
[1643674630397,0.05,38508.0,38503.0,0.00123506]
[1643674630598,0.35910583,38509.0,38503.0,0.00123506]
[1643674630796,0.35903077,38509.0,38503.0,0.00123506]
[1643674631000,0.35903077,38509.0,38503.0,0.00246349]
[1643674631199,0.4564867,38509.0,38503.0,0.00246349]
[1643674631397,0.4564867,38509.0,38503.0,0.00122843]
[1643674632198,0.1,38508.0,38504.0,0.00122841]
[1643674632397,0.4564867,38509.0,38504.0,0.00122841]
[1643674632398,0.52142955,38509.0,38504.0,0.00122841]
[1643674632597,0.450758,38508.0,38504.0,0.00122841]
[1643674633447,0.350758,38508.0,38504.0,0.26587806]
[1643674633749,0.15,38507.0,38504.0,0.00123]
[1643674633952,0.5747404,38506.0,38504.0,0.00123]
[1643674634255,0.5747404,38506.0,38468.0,0.33393594]
[1643674634256,0.7,38501.0,38468.0,0.33393594]
[1643674634452,0.05,38481.0,38467.0,0.0999]
[1643674634649,0.38450158,38470.0,38467.0,0.0999]
[1643674634861,0.38450158,38470.0,38466.0,1.0]
[1643674634862,0.0519,38475.0,38466.0,1.0]
[1643674635050,0.1,38469.0,38466.0,1.0]
[1643674635354,0.2,38469.0,38466.0,1.0]
[1643674635554,0.2,38469.0,38461.0,0.01]
[1643674635555,0.7,38467.0,38461.0,0.01]
[1643674635752,0.3739824,38466.0,38461.0,0.01]
[1643674636055,0.07812297,38464.0,38461.0,0.01]
[1643674636250,0.45,38461.0,38441.0,0.00047663]
[1643674636451,0.36314674,38457.0,38444.0,0.29746632]
[1643674636650,0.065042,38455.0,38444.0,0.55203659]
[1643674637231,0.14678685,38455.0,38444.0,0.63942737]
[1643674637430,0.14678685,38455.0,38444.0,0.34196105]
[1643674637631,0.19678685,38455.0,38444.0,0.34196105]
[1643674637831,0.115042,38455.0,38445.0,0.00055901]
[1643674638035,0.350945,38454.0,38445.0,0.00055901]
[1643674638232,0.57734813,38454.0,38445.0,0.00055901]
[1643674638432,0.5,38453.0,38445.0,0.00055901]
[1643674638632,0.850945,38453.0,38445.0,0.00055901]
[1643674638837,0.850945,38453.0,38447.0,0.32265678]
[1643674639035,0.17519203,38455.0,38451.0,0.10273523]
[1643674639235,0.17519203,38455.0,38452.0,0.101103]
[1643674639434,0.0519,38460.0,38453.0,0.61989768]
[1643674639634,0.0519,38465.0,38453.0,0.377665]
[1643674639834,0.21139818,38471.0,38454.0,0.39206186]
[1643674639835,0.33199943,38467.0,38454.0,0.39206186]
[1643674640034,0.06502157,38464.0,38454.0,0.39206186]
[1643674640235,0.350945,38463.0,38453.0,0.02672]
[1643674640435,0.06502157,38464.0,38452.0,0.001103]
[1643674640651,0.7,38462.0,38444.0,0.23889469]
[1643674640849,0.21458828,38461.0,38444.0,0.23889469]
[1643674641048,0.2,38461.0,38441.0,0.28094853]
[1643674641251,0.09005713,38454.0,38445.0,0.35557104]
[1643674641447,0.09005713,38454.0,38446.0,0.350945]
[1643674641647,0.31693462,38461.0,38445.0,0.35557104]
[1643674641849,0.05,38457.0,38446.0,0.23740724]
[1643674642248,0.05,38460.0,38450.0,0.28443583]
[1643674642648,0.05,38460.0,38449.0,0.25446982]
[1643674642649,0.30864684,38459.0,38449.0,0.23621421]
[1643674642848,0.23815558,38458.0,38451.0,0.00062557]
[1643674643049,0.350945,38457.0,38451.0,0.00062557]
[1643674644506,0.350945,38457.0,38453.0,0.27036326]
[1643674644507,0.05,38457.0,38453.0,0.27036326]
[1643674644705,0.12169308,38463.0,38454.0,0.27222878]
[1643674644907,0.02169308,38463.0,38454.0,0.27222878]
[1643674645104,0.02169308,38463.0,38453.0,0.34172326]
[1643674645505,0.37385417,38463.0,38453.0,0.32263726]
[1643674645705,0.37385417,38463.0,38453.0,0.2931285]
[1643674646107,0.37385417,38463.0,38453.0,0.07136]
[1643674646309,0.37385417,38463.0,38451.0,0.00062557]
[1643674646310,0.34132234,38462.0,38451.0,0.00062557]
[1643674646508,0.350945,38461.0,38451.0,0.00062557]
[1643674646706,0.34132234,38460.0,38451.0,0.00062557]
[1643674647007,0.350945,38459.0,38451.0,0.00062557]
[1643674647206,0.09102415,38454.0,38451.0,0.00062557]
[1643674647408,0.56227181,38453.0,38451.0,0.00062557]
[1643674647606,0.350945,38453.0,38451.0,0.00062557]
[1643674648646,0.09102415,38454.0,38451.0,0.00062557]
[1643674648848,0.350945,38453.0,38451.0,0.00062557]
[1643674649047,0.21961276,38452.0,38451.0,0.00062557]
[1643674649246,0.350945,38452.0,38451.0,0.00062557]
[1643674649447,0.350945,38453.0,38451.0,0.00062557]
[1643674649849,0.17519203,38456.0,38451.0,0.00062557]
[1643674650048,0.17519203,38457.0,38451.0,0.00062557]
[1643674650247,0.240854,38462.0,38451.0,0.00062557]
[1643674650448,0.1,38461.0,38451.0,0.00062557]
[1643674650748,0.340854,38462.0,38454.0,0.24147847]
[1643674650951,0.28146517,38461.0,38454.0,0.24147847]